[Event "IIFL Wealth 4th Mumbai GM"]
[Site "Mumbai"]
[Date "2019.01.03"]
[Round "5"]
[White "Tarun Kanyamarala"]
[Black "Samant Aditya S"]
[Result "1/2-1/2"]
[ECO "E11"]
[WhiteElo "2120"]
[BlackElo "2205"]
[Annotator "NA"]
[PlyCount "117"]
[EventDate "2018.12.30"]
[EventType "swiss"]
[EventCountry "IND"]
[SourceTitle "playchess.com"]
[Source "ChessBase"]
[SourceQuality "1"]
[TimeControl "40/5400+30:1800+30"]

1. d4 {[%emt 0:00:00]} Nf6 {[%emt 0:00:00]} 2. c4 {[%emt 0:00:00]} e6 {[%emt 0:00:00]} 3. Nf3 {[%emt 0:00:06]} Bb4+ {[%emt 0:00:00]} 4. Bd2 {[%emt 0:00:08]} c5 {[%emt 0:00:00]} 5. Bxb4 {[%emt 0:00:32]} cxb4 {[%emt 0:00:02]} 6. Nbd2 {[%emt 0:00:12]} O-O {[%emt 0:00:16]} 7. e3 {[%emt 0:00:46]} d6 {[%emt 0:00:38]} 8. Bd3 {[%emt 0:00:33]} Qe7 {[%emt 0:01:47]} 9. Qc2 {[%emt 0:17:53]} e5 {[%emt 0:01:18]} 10. c5 {[%emt 0:00:54]} dxc5 {[%emt 0:13:09]} 11. dxe5 {[%emt 0:04:18]} Ng4 {[%emt 0:02:44]} 12. Bxh7+ {[%emt 0:02:34]} Kh8 {[%emt 0:00:05]} 13. Be4 {[%emt 0:03:29]} Nxe5 {[%emt 0:01:18]} 14. Nxe5 {[%emt 0:11:25]} Qxe5 {[%emt 0:00:10]} 15. O-O {[%emt 0:01:03]} Nd7 {[%emt 0:01:46]} 16. Rac1 {[%emt 0:13:00]} Re8 {[%emt 0:24:10]} 17. Bf3 {[%emt 0:06:15]} Rb8 {[%emt 0:04:23]} 18. Rfd1 {[%emt 0:02:45]} b6 {[%emt 0:03:17]} 19. Nc4 {[%emt 0:03:34]} Qe7 {[%emt 0:01:16]} 20. Nd6 {[%emt 0:04:05]} Rf8 {[%emt 0:00:57]} 21. Nf5 {[%emt 0:09:28]} Qd8 {[%emt 0:14:38]} 22. Qe4 {[%emt 0:04:27]} Qg5 {[%emt 0:06:31]} 23. h4 {[%emt 0:01:38]} Qf6 {[%emt 0:00:41]} 24. Ne7 {[%emt 0:08:54]} Bb7 {[%emt 0:07:35]} 25. Qf5 {[%emt 0:02:45]} Qxf5 {[%emt 0:02:09]} 26. Nxf5 {[%emt 0:00:09]} Bxf3 {[%emt 0:01:45]} 27. gxf3 {[%emt 0:00:19]} Rfd8 {[%emt 0:02:35]} 28. Nd6 {[%emt 0:00:33]} Kg8 {[%emt 0:00:35]} 29. f4 {[%emt 0:00:54]} Nf6 {[%emt 0:03:47]} 30. Nc4 {[%emt 0:01:40]} Rxd1+ {[%emt 0:03:31]} 31. Rxd1 {[%emt 0:00:04]} b5 {[%emt 0:00:10]} 32. Ne5 {[%emt 0:00:28]} Rc8 {[%emt 0:00:11]} 33. f3 {[%emt 0:00:54]} c4 {[%emt 0:00:11]} 34. Kf2 {[%emt 0:00:19]} c3 {[%emt 0:00:48]} 35. bxc3 {[%emt 0:00:16]} bxc3 {[%emt 0:00:22]} 36. e4 {[%emt 0:00:37]} a5 {[%emt 0:00:57]} 37. Ke3 {[%emt 0:00:38]} b4 {[%emt 0:00:08]} 38. Kd3 {[%emt 0:00:28]} a4 {[%emt 0:01:08]} 39. Kc2 {[%emt 0:00:27]} Nh5 {[%emt 0:03:25]} 40. Nd3 {[%emt 0:00:00]} Ng3 {[%emt 0:00:00]} 41. Nxb4 {[%emt 0:09:22]} Ne2 {[%emt 0:01:04]} 42. f5 {[%emt 0:01:34]} a3 {[%emt 0:06:49]} 43. Rd7 {[%emt 0:06:13]} Rc4 {[%emt 0:08:56]} 44. Rb7 {[%emt 0:05:00]} Nd4+ {[%emt 0:06:07]} 45. Kd3 {[%emt 0:01:12]} c2 {[%emt 0:00:15]} 46. Nxc2 {[%emt 0:00:35]} Rxc2 {[%emt 0:00:04]} 47. Rb8+ {[%emt 0:05:45]} Kh7 {[%emt 0:00:06]} 48. Kxd4 {[%emt 0:00:12]} Rxa2 {[%emt 0:00:35]} 49. Ra8 {[%emt 0:00:35]} Ra1 {[%emt 0:00:27]} 50. Ke5 {[%emt 0:01:43]} f6+ {[%emt 0:01:37]} 51. Kf4 {[%emt 0:01:06]} Ra2 {[%emt 0:02:00]} 52. h5 {[%emt 0:02:39]} Ra1 {[%emt 0:01:20]} 53. Ra7 {[%emt 0:01:28]} Kh6 {[%emt 0:01:17]} 54. Ra8 {[%emt 0:00:12]} Kh7 {[%emt 0:00:07]} 55. Ra7 {[%emt 0:00:41]} Kh6 {[%emt 0:00:10]} 56. Ra8 {[%emt 0:00:16]} Kh7 57. h6 gxh6 58. e5 fxe5+ 59. Kxe5 1/2-1/2

[Event "IIFL Wealth 4th Mumbai GM"]
[Site "Mumbai"]
[Date "2019.01.03"]
[Round "5"]
[White "Prajesh R"]
[Black "Rebut, Paul"]
[Result "0-1"]
[ECO "C55"]
[WhiteElo "2102"]
[BlackElo "1740"]
[Annotator "NA"]
[PlyCount "52"]
[EventDate "2018.12.30"]
[EventType "swiss"]
[EventCountry "IND"]
[SourceTitle "playchess.com"]
[Source "ChessBase"]
[SourceQuality "1"]
[TimeControl "40/5400+30:1800+30"]

1. e4 e5 2. Nf3 Nc6 3. Bc4 Nf6 4. d3 Be7 5. Nc3 O-O 6. Be3 d6 7. h3 a6 8. O-O Na5 9. Bd5 Nxd5 10. Nxd5 f5 11. exf5 Bxf5 12. Qd2 Nc6 13. Qc3 Kh8 14. Qd2 Bxh3 15. Ng5 Bf5 16. Nxe7 Qxe7 17. d4 exd4 18. Bxd4 Nxd4 19. Qxd4 Qxg5 20. Qc3 Be4 21. f3 Bc6 22. Rad1 Rae8 23. Rd4 Re2 24. Rg4 Qxg4 25. fxg4 Rxg2+ 26. Kh1 Rxf1# 0-1

[Event "IIFL Wealth 4th Mumbai GM"]
[Site "Mumbai"]
[Date "2019.01.03"]
[Round "5"]
[White "Nayem, Haque"]
[Black "Dhungel, Uttam"]
[Result "1-0"]
[ECO "B43"]
[WhiteElo "2083"]
[BlackElo "1587"]
[Annotator "NA"]
[PlyCount "104"]
[EventDate "2018.12.30"]
[EventType "swiss"]
[EventCountry "IND"]
[SourceTitle "playchess.com"]
[Source "ChessBase"]
[SourceQuality "1"]
[TimeControl "40/5400+30:1800+30"]

1. e4 {[%emt 0:00:00]} c5 {[%emt 0:00:00]} 2. Nf3 {[%emt 0:00:00]} e6 {[%emt 0:00:00]} 3. d4 {[%emt 0:00:00]} cxd4 {[%emt 0:00:04]} 4. Nxd4 {[%emt 0:00:00]} a6 {[%emt 0:00:33]} 5. Nc3 {[%emt 0:00:11]} Qc7 {[%emt 0:00:33]} 6. Be2 {[%emt 0:00:39]} Nf6 {[%emt 0:03:00]} 7. O-O {[%emt 0:08:54]} b5 {[%emt 0:02:40]} 8. Bf3 {[%emt 0:09:14]} e5 {[%emt 0:20:24]} 9. Nf5 {[%emt 0:10:50]} d6 {[%emt 0:09:35]} 10. Bg5 {[%emt 0:02:53]} Nbd7 {[%emt 0:04:34]} 11. a3 {[%emt 0:02:28]} h6 {[%emt 0:09:25]} 12. Bxf6 {[%emt 0:04:31]} Nxf6 {[%emt 0:01:22]} 13. Ne3 {[%emt 0:00:07]} Be6 {[%emt 0:04:56]} 14. Bg4 {[%emt 0:01:44]} Be7 {[%emt 0:08:40]} 15. Qf3 {[%emt 0:01:41]} Qd7 {[%emt 0:03:45]} 16. Bxe6 {[%emt 0:00:52]} h5 {[%emt 0:04:25]} 17. Bf5 {[%emt 0:02:44]} g6 18. Be6 fxe6 {[%emt 0:05:49]} 19. Qg3 {[%emt 0:01:45]} O-O-O {[%emt 0:01:12]} 20. Qf3 {[%emt 0:00:39]} Qc6 {[%emt 0:00:55]} 21. Rfd1 {[%emt 0:03:52]} Rdf8 {[%emt 0:02:09]} 22. Qe2 {[%emt 0:00:14]} Rf7 {[%emt 0:05:11]} 23. Rd3 {[%emt 0:00:22]} Nxe4 {[%emt 0:01:25]} 24. Nxe4 {[%emt 0:00:26]} Qxe4 {[%emt 0:00:13]} 25. a4 {[%emt 0:01:18]} b4 {[%emt 0:08:21]} 26. Rb3 {[%emt 0:00:40]} Kb7 {[%emt 0:01:48]} 27. f3 {[%emt 0:07:19]} Qf4 {[%emt 0:00:47]} 28. c4 {[%emt 0:15:50]} Qd4 {[%emt 0:01:28]} 29. Rxb4+ {[%emt 0:03:00]} Ka7 {[%emt 0:00:05]} 30. Rd1 {[%emt 0:05:38]} Qc5 {[%emt 0:00:09]} 31. Rb3 {[%emt 0:00:25]} Rc8 {[%emt 0:00:24]} 32. Rbd3 {[%emt 0:01:35]} Bg5 {[%emt 0:00:20]} 33. Kh1 {[%emt 0:01:54]} Rc6 {[%emt 0:00:12]} 34. b3 {[%emt 0:00:35]} Rd7 {[%emt 0:00:51]} 35. Nf1 {[%emt 0:02:01]} h4 {[%emt 0:00:37]} 36. Nd2 {[%emt 0:00:40]} Bxd2 {[%emt 0:00:33]} 37. R1xd2 {[%emt 0:00:21]} Rc8 {[%emt 0:00:43]} 38. Qe4 {[%emt 0:00:36]} Rcd8 {[%emt 0:01:06]} 39. Qxg6 {[%emt 0:04:46]} Re7 {[%emt 0:00:31]} 40. Qg5 {[%emt 0:00:00]} Rdd7 {[%emt 0:00:00]} 41. Rxd6 {[%emt 0:01:49]} Rb7 {[%emt 0:03:02]} 42. Qxh4 {[%emt 0:07:46]} Rh7 {[%emt 0:01:44]} 43. Qf2 {[%emt 0:00:37]} Qxf2 {[%emt 0:00:41]} 44. Rxf2 {[%emt 0:00:02]} Rxb3 {[%emt 0:00:16]} 45. Rxe6 {[%emt 0:00:06]} Rc7 {[%emt 0:00:18]} 46. Rxe5 {[%emt 0:00:46]} Rxc4 {[%emt 0:00:08]} 47. a5 {[%emt 0:00:15]} Rb5 {[%emt 0:00:31]} 48. Rfe2 {[%emt 0:00:47]} Ra4 {[%emt 0:00:44]} 49. Re7+ {[%emt 0:05:53]} Ka8 {[%emt 0:00:28]} 50. Rd2 {[%emt 0:00:59]} Raxa5 {[%emt 0:01:15]} 51. Rd8+ {[%emt 0:00:07]} Rb8 {[%emt 0:00:05]} 52. Rxb8+ {[%emt 0:00:19]} Kxb8 {[%emt 0:00:02]} 1-0

[Event "IIFL Wealth 4th Mumbai GM"]
[Site "Mumbai"]
[Date "2019.01.03"]
[Round "5"]
[White "Thipsay, Bagyashree Sathe"]
[Black "Mrudul Dehankar"]
[Result "1-0"]
[ECO "B01"]
[WhiteElo "2028"]
[BlackElo "2199"]
[Annotator "NA"]
[PlyCount "61"]
[EventDate "2018.12.30"]
[EventType "swiss"]
[EventCountry "IND"]
[SourceTitle "playchess.com"]
[Source "ChessBase"]
[SourceQuality "1"]
[TimeControl "40/5400+30:1800+30"]

1. e4 {[%emt 0:00:00]} d5 {[%emt 0:00:07]} 2. exd5 {[%emt 0:00:00]} Nf6 {[%emt 0:00:05]} 3. d4 {[%emt 0:00:00]} Bg4 {[%emt 0:00:12]} 4. Be2 {[%emt 0:00:06]} Bxe2 {[%emt 0:00:14]} 5. Qxe2 {[%emt 0:00:06]} Qxd5 {[%emt 0:00:12]} 6. Nf3 {[%emt 0:00:09]} e6 {[%emt 0:00:35]} 7. O-O {[%emt 0:00:41]} Nc6 {[%emt 0:00:41]} 8. Be3 {[%emt 0:02:30]} O-O-O {[%emt 0:01:01]} 9. c4 {[%emt 0:00:52]} Qh5 {[%emt 0:01:32]} 10. Nc3 {[%emt 0:01:39]} Bd6 {[%emt 0:06:02]} 11. c5 {[%emt 0:01:02]} Be7 {[%emt 0:06:08]} 12. b4 {[%emt 0:01:13]} Nd5 {[%emt 0:26:01]} 13. Nxd5 {[%emt 0:02:53]} Rxd5 {[%emt 0:01:57]} 14. b5 {[%emt 0:00:56]} Nd8 {[%emt 0:05:47]} 15. Qc4 {[%emt 0:18:19]} g5 {[%emt 0:18:20]} 16. Qa4 {[%emt 0:02:41]} g4 {[%emt 0:09:12]} 17. Nd2 {[%emt 0:07:08]} Kb8 {[%emt 0:06:01]} 18. Rfc1 {[%emt 0:03:55]} Qf5 {[%emt 0:07:14]} 19. Rc3 {[%emt 0:01:50]} e5 {[%emt 0:02:32]} 20. dxe5 {[%emt 0:02:04]} Qxe5 {[%emt 0:00:16]} 21. Rac1 {[%emt 0:00:13]} Bg5 {[%emt 0:03:14]} 22. Nc4 {[%emt 0:02:57]} Qe4 {[%emt 0:00:53]} 23. Ra3 {[%emt 0:02:38]} Bxe3 {[%emt 0:01:16]} 24. Qxa7+ {[%emt 0:00:32]} Kc8 {[%emt 0:00:02]} 25. Nxe3 {[%emt 0:00:12]} Rd2 {[%emt 0:01:49]} 26. c6 {[%emt 0:01:53]} bxc6 {[%emt 0:00:16]} 27. bxc6 {[%emt 0:00:02]} Nxc6 {[%emt 0:00:50]} 28. Qa8+ {[%emt 0:00:04]} Kd7 {[%emt 0:00:36]} 29. Qxh8 {[%emt 0:00:03]} Qf4 {[%emt 0:00:48]} 30. Rf1 {[%emt 0:01:23]} Nd4 {[%emt 0:00:27]} 31. Ra8 {[%emt 0:01:18]} 1-0

[Event "IIFL Wealth 4th Mumbai GM"]
[Site "Mumbai"]
[Date "2019.01.03"]
[Round "5"]
[White "Trisha Kanyamarala"]
[Black "Prraneeth Vuppala"]
[Result "1-0"]
[ECO "D38"]
[WhiteElo "1942"]
[BlackElo "2228"]
[Annotator "NA"]
[PlyCount "105"]
[EventDate "2018.12.30"]
[EventType "swiss"]
[EventCountry "IND"]
[SourceTitle "playchess.com"]
[Source "ChessBase"]
[SourceQuality "1"]
[TimeControl "40/5400+30:1800+30"]

1. d4 {[%emt 0:00:00]} Nf6 {[%emt 0:00:12]} 2. c4 {[%emt 0:00:07]} e6 {[%emt 0:00:06]} 3. Nf3 {[%emt 0:00:13]} d5 {[%emt 0:00:07]} 4. Nc3 {[%emt 0:00:18]} Bb4 {[%emt 0:00:02]} 5. Bg5 {[%emt 0:00:32]} h6 {[%emt 0:00:13]} 6. Bxf6 {[%emt 0:00:26]} Qxf6 {[%emt 0:00:02]} 7. Qa4+ {[%emt 0:00:18]} Nc6 {[%emt 0:00:03]} 8. e3 {[%emt 0:00:30]} O-O {[%emt 0:00:29]} 9. Be2 {[%emt 0:00:30]} dxc4 {[%emt 0:01:03]} 10. Bxc4 {[%emt 0:00:53]} e5 {[%emt 0:07:45]} 11. O-O {[%emt 0:01:52]} exd4 {[%emt 0:16:48]} 12. Nd5 Qd6 {[%emt 0:00:05]} 13. Nxd4 {[%emt 0:01:38]} Nxd4 {[%emt 0:03:26]} 14. Qxb4 {[%emt 0:00:24]} Qxb4 {[%emt 0:21:06]} 15. Nxb4 {[%emt 0:00:08]} Nf5 {[%emt 0:01:48]} 16. Rfd1 {[%emt 0:01:13]} Be6 {[%emt 0:16:31]} 17. Bxe6 {[%emt 0:07:43]} fxe6 {[%emt 0:00:02]} 18. Rac1 {[%emt 0:00:11]} Rad8 {[%emt 0:01:27]} 19. h3 {[%emt 0:10:03]} c6 {[%emt 0:10:22]} 20. Nd3 {[%emt 0:01:37]} Rfe8 {[%emt 0:01:45]} 21. Nc5 {[%emt 0:12:05]} Nd6 {[%emt 0:01:59]} 22. b4 {[%emt 0:08:16]} Kf7 {[%emt 0:01:45]} 23. f3 {[%emt 0:08:07]} Ke7 {[%emt 0:09:32]} 24. e4 {[%emt 0:01:52]} e5 {[%emt 0:02:39]} 25. Kf2 {[%emt 0:01:44]} b6 {[%emt 0:01:41]} 26. Nd3 {[%emt 0:02:44]} Kd7 {[%emt 0:00:01]} 27. Rc2 {[%emt 0:01:38]} Re6 {[%emt 0:00:56]} 28. a4 {[%emt 0:02:34]} Kc7 {[%emt 0:00:50]} 29. Ke3 {[%emt 0:02:34]} Kb7 {[%emt 0:00:13]} 30. Rdc1 {[%emt 0:02:07]} Rc8 {[%emt 0:01:00]} 31. Rd1 {[%emt 0:01:43]} Ne8 {[%emt 0:00:40]} 32. Rc5 {[%emt 0:02:35]} Rd8 {[%emt 0:00:20]} 33. Rc3 Rd4 {[%emt 0:00:37]} 34. Rdc1 {[%emt 0:01:17]} Rdd6 {[%emt 0:00:29]} 35. Rb1 {[%emt 0:01:30]} Nc7 {[%emt 0:00:17]} 36. Nc5+ {[%emt 0:00:58]} bxc5 {[%emt 0:00:34]} 37. bxc5+ {[%emt 0:00:06]} Ka6 {[%emt 0:00:06]} 38. cxd6 {[%emt 0:00:08]} Rxd6 {[%emt 0:00:01]} 39. Rc5 {[%emt 0:00:54]} Ne6 {[%emt 0:00:40]} 40. Rxe5 {[%emt 0:00:00]} g5 {[%emt 0:00:00]} 41. g3 {[%emt 0:01:56]} Nd4 {[%emt 0:00:27]} 42. Rc5 {[%emt 0:00:47]} h5 {[%emt 0:03:30]} 43. Rb4 {[%emt 0:01:11]} Ne6 {[%emt 0:01:37]} 44. e5 {[%emt 0:01:49]} h4 {[%emt 0:03:12]} 45. exd6 {[%emt 0:00:28]} hxg3 {[%emt 0:00:20]} 46. Rxc6+ {[%emt 0:00:40]} Ka5 {[%emt 0:00:03]} 47. Rb1 {[%emt 0:00:16]} g4 {[%emt 0:02:11]} 48. hxg4 {[%emt 0:00:30]} g2 {[%emt 0:01:27]} 49. d7 {[%emt 0:00:12]} Nd8 {[%emt 0:00:06]} 50. Rc8 {[%emt 0:00:09]} Nf7 {[%emt 0:00:25]} 51. d8=Q+ {[%emt 0:00:16]} Nxd8 {[%emt 0:00:06]} 52. Rxd8 {[%emt 0:00:07]} Ka6 {[%emt 0:00:08]} 53. g5 {[%emt 0:00:10]} 1-0

[Event "IIFL Wealth 4th Mumbai GM"]
[Site "Mumbai"]
[Date "2019.01.03"]
[Round "5"]
[White "Triton, Maxime"]
[Black "Subrota, Biswas"]
[Result "0-1"]
[ECO "B87"]
[WhiteElo "1937"]
[BlackElo "2171"]
[Annotator "NA"]
[PlyCount "102"]
[EventDate "2018.12.30"]
[EventType "swiss"]
[EventCountry "IND"]
[SourceTitle "playchess.com"]
[Source "ChessBase"]
[SourceQuality "1"]
[TimeControl "40/5400+30:1800+30"]

1. e4 {[%emt 0:00:00]} c5 {[%emt 0:00:23]} 2. Nf3 {[%emt 0:00:00]} d6 {[%emt 0:00:03]} 3. Nc3 {[%emt 0:00:02]} Nf6 {[%emt 0:00:04]} 4. d4 {[%emt 0:00:23]} cxd4 {[%emt 0:00:02]} 5. Nxd4 {[%emt 0:00:07]} a6 {[%emt 0:00:02]} 6. Bc4 {[%emt 0:00:48]} e6 {[%emt 0:00:02]} 7. Bb3 {[%emt 0:00:10]} b5 {[%emt 0:01:03]} 8. O-O {[%emt 0:00:10]} Nbd7 {[%emt 0:00:49]} 9. Re1 {[%emt 0:00:11]} Nc5 {[%emt 0:01:38]} 10. Bd5 {[%emt 0:05:23]} exd5 {[%emt 0:10:50]} 11. exd5+ {[%emt 0:00:16]} Kd7 {[%emt 0:00:05]} 12. b4 {[%emt 0:03:37]} Na4 {[%emt 0:01:53]} 13. Nxa4 {[%emt 0:01:19]} bxa4 {[%emt 0:00:43]} 14. Nc6 {[%emt 0:12:32]} Qb6 {[%emt 0:01:11]} 15. Qf3 {[%emt 0:34:14]} Qb5 {[%emt 0:06:30]} 16. c4 {[%emt 0:08:49]} Qxc4 {[%emt 0:00:06]} 17. Bf4 {[%emt 0:00:38]} Qxd5 {[%emt 0:15:28]} 18. Ne5+ Kd8 19. Qe3 {[%emt 0:10:58]} dxe5 {[%emt 0:22:45]} 20. Rad1 {[%emt 0:01:12]} Bd7 {[%emt 0:04:33]} 21. Qb6+ {[%emt 0:02:52]} Ke8 {[%emt 0:00:04]} 22. Rxd5 {[%emt 0:01:12]} Nxd5 {[%emt 0:00:02]} 23. Qb7 {[%emt 0:03:59]} Nxf4 {[%emt 0:00:03]} 24. Qxa8+ {[%emt 0:00:02]} Ke7 {[%emt 0:00:01]} 25. Rxe5+ {[%emt 0:01:14]} Be6 {[%emt 0:06:04]} 26. Re4 {[%emt 0:06:33]} Ng6 {[%emt 0:00:41]} 27. f4 {[%emt 0:01:06]} f5 {[%emt 0:01:17]} 28. Re3 {[%emt 0:00:49]} Kf7 {[%emt 0:00:47]} 29. Qxa6 {[%emt 0:00:49]} Nxf4 {[%emt 0:00:03]} 30. Kf1 {[%emt 0:02:16]} Be7 {[%emt 0:03:28]} 31. Qxa4 {[%emt 0:02:25]} Nd5 {[%emt 0:02:56]} 32. Rf3 {[%emt 0:01:17]} Nxb4 {[%emt 0:00:15]} 33. a3 {[%emt 0:00:27]} Nd5 {[%emt 0:00:14]} 34. Qc2 {[%emt 0:00:25]} g6 {[%emt 0:00:19]} 35. Qd2 {[%emt 0:00:39]} Nf6 {[%emt 0:00:29]} 36. Re3 {[%emt 0:00:33]} Rb8 {[%emt 0:01:16]} 37. Qc2 {[%emt 0:00:28]} Rc8 {[%emt 0:00:12]} 38. Rc3 {[%emt 0:00:19]} Ra8 {[%emt 0:00:32]} 39. Ke2 {[%emt 0:00:44]} Ne4 {[%emt 0:00:16]} 40. Rh3 {[%emt 0:00:21]} h5 {[%emt 0:00:14]} 41. Re3 {[%emt 0:00:36]} Rc8 {[%emt 0:07:06]} 42. Qb2 {[%emt 0:03:42]} Rc7 {[%emt 0:01:52]} 43. Kd1 {[%emt 0:09:15]} Bf6 {[%emt 0:01:55]} 44. Qb4 {[%emt 0:02:32]} Bg5 {[%emt 0:01:35]} 45. Rf3 {[%emt 0:04:15]} Rc1+ {[%emt 0:00:37]} 46. Ke2 {[%emt 0:00:05]} Bc4+ {[%emt 0:00:41]} 47. Rd3 {[%emt 0:00:46]} Rc2+ {[%emt 0:00:03]} 48. Kd1 {[%emt 0:01:13]} Bxd3 {[%emt 0:00:02]} 49. Qb7+ {[%emt 0:00:33]} Kf8 {[%emt 0:00:21]} 50. Qb8+ {[%emt 0:01:52]} Kg7 {[%emt 0:00:07]} 51. Qe5+ {[%emt 0:03:46]} Kh7 {[%emt 0:00:03]} 0-1

[Event "IIFL Wealth 4th Mumbai GM"]
[Site "Mumbai"]
[Date "2019.01.03"]
[Round "5"]
[White "Bhasima, Prashan"]
[Black "Larmet, Nino"]
[Result "*"]
[ECO "C01"]
[WhiteElo "1658"]
[BlackElo "1835"]
[Annotator "NA"]
[PlyCount "43"]
[EventDate "2018.12.30"]
[EventType "swiss"]
[EventCountry "IND"]
[SourceTitle "playchess.com"]
[Source "ChessBase"]
[SourceQuality "1"]
[TimeControl "40/5400+30:1800+30"]

1. e4 {[%emt 0:00:00]} e6 {[%emt 0:00:00]} 2. d4 {[%emt 0:00:00]} d5 {[%emt 0:00:00]} 3. exd5 {[%emt 0:00:16]} exd5 {[%emt 0:00:11]} 4. Nf3 {[%emt 0:01:02]} Nf6 {[%emt 0:00:21]} 5. c4 {[%emt 0:00:54]} Bb4+ {[%emt 0:00:44]} 6. Bd2 {[%emt 0:00:25]} c5 {[%emt 0:00:45]} 7. Bxb4 {[%emt 0:02:56]} cxb4 {[%emt 0:00:15]} 8. Be2 {[%emt 0:01:43]} O-O {[%emt 0:00:20]} 9. O-O {[%emt 0:00:05]} Be6 {[%emt 0:00:57]} 10. Nbd2 {[%emt 0:01:16]} Nc6 {[%emt 0:00:43]} 11. Rc1 {[%emt 0:01:16]} Qa5 {[%emt 0:02:05]} 12. Qb3 {[%emt 0:08:02]} Qd8 {[%emt 0:01:50]} 13. c5 {[%emt 0:00:42]} Ne4 {[%emt 0:03:00]} 14. Qc2 {[%emt 0:02:11]} f5 {[%emt 0:01:16]} 15. Bb5 {[%emt 0:02:05]} a5 {[%emt 0:01:56]} 16. Bxc6 {[%emt 0:00:16]} bxc6 {[%emt 0:00:47]} 17. Ne5 {[%emt 0:00:11]} Qc7 {[%emt 0:02:54]} 18. f4 {[%emt 0:03:36]} a4 {[%emt 0:06:51]} 19. Nxe4 {[%emt 0:00:33]} dxe4 {[%emt 0:00:29]} 20. a3 {[%emt 0:00:34]} bxa3 {[%emt 0:04:41]} 21. bxa3 {[%emt 0:00:15]} Rfb8 {[%emt 0:02:34]} 22. Rb1 {[%emt 0:05:08]} *

[Event "IIFL Wealth 4th Mumbai GM"]
[Site "Mumbai"]
[Date "2019.01.03"]
[Round "5"]
[White "Bhasima, Prashan"]
[Black "Larmet, Nino"]
[Result "1-0"]
[ECO "C54"]
[WhiteElo "1658"]
[BlackElo "1835"]
[Annotator "NA"]
[PlyCount "155"]
[EventDate "2018.12.30"]
[EventType "swiss"]
[EventCountry "IND"]
[SourceTitle "playchess.com"]
[Source "ChessBase"]
[SourceQuality "1"]
[TimeControl "40/5400+30:1800+30"]

1. e4 {[%emt 0:00:00]} e5 {[%emt 0:00:01]} 2. Nf3 {[%emt 0:00:00]} Nc6 {[%emt 0:00:18]} 3. Bc4 {[%emt 0:00:00]} Bc5 {[%emt 0:00:06]} 4. c3 {[%emt 0:00:46]} Nf6 {[%emt 0:00:05]} 5. d4 {[%emt 0:01:16]} exd4 {[%emt 0:00:27]} 6. cxd4 {[%emt 0:00:13]} Bb4+ {[%emt 0:01:09]} 7. Bd2 {[%emt 0:00:29]} Bxd2+ {[%emt 0:23:00]} 8. Nbxd2 {[%emt 0:00:58]} d5 {[%emt 0:00:44]} 9. exd5 {[%emt 0:03:27]} Nxd5 {[%emt 0:01:25]} 10. O-O {[%emt 0:06:11]} O-O {[%emt 0:00:28]} 11. h3 {[%emt 0:02:55]} Nb6 {[%emt 0:01:17]} 12. d5 {[%emt 0:09:13]} Nxd5 13. Ne4 {[%emt 0:01:04]} Nb6 {[%emt 0:04:11]} 14. Bb3 {[%emt 0:03:49]} Bf5 {[%emt 0:00:42]} 15. Ng3 {[%emt 0:01:01]} Bg6 {[%emt 0:00:09]} 16. Qc1 {[%emt 0:00:58]} Qf6 {[%emt 0:02:21]} 17. Re1 {[%emt 0:03:03]} Rfe8 {[%emt 0:02:16]} 18. Qd2 {[%emt 0:01:06]} Rad8 {[%emt 0:01:04]} 19. Rad1 {[%emt 0:02:24]} Rxe1+ {[%emt 0:02:16]} 20. Rxe1 {[%emt 0:00:50]} h6 {[%emt 0:00:42]} 21. Qc1 {[%emt 0:00:32]} Nd5 {[%emt 0:08:06]} 22. Bxd5 {[%emt 0:14:14]} Rxd5 {[%emt 0:00:02]} 23. b4 {[%emt 0:01:05]} Qd8 {[%emt 0:01:52]} 24. a3 {[%emt 0:02:26]} a5 {[%emt 0:03:05]} 25. bxa5 {[%emt 0:04:46]} Rxa5 {[%emt 0:01:20]} 26. Qb2 {[%emt 0:03:05]} b6 {[%emt 0:03:03]} 27. Rc1 {[%emt 0:15:11]} Qd7 {[%emt 0:02:58]} 28. Nh4 {[%emt 0:05:36]} Bh7 {[%emt 0:02:33]} 29. Nf3 {[%emt 0:00:41]} Rd5 {[%emt 0:02:38]} 30. Qe2 {[%emt 0:01:42]} Nd4 {[%emt 0:08:06]} 31. Nxd4 {[%emt 0:01:34]} Rxd4 {[%emt 0:00:10]} 32. Rxc7 {[%emt 0:00:50]} Qd8 {[%emt 0:03:47]} 33. Re7 {[%emt 0:03:13]} Kf8 {[%emt 0:02:42]} 34. Re3 {[%emt 0:02:02]} Rd7 {[%emt 0:04:58]} 35. Qb2 {[%emt 0:01:28]} Rd1+ {[%emt 0:01:46]} 36. Kh2 {[%emt 0:00:42]} Bg6 {[%emt 0:03:51]} 37. Qb4+ {[%emt 0:03:15]} Qd6 {[%emt 0:02:00]} 38. Qa4 {[%emt 0:01:29]} Qd7 {[%emt 0:05:55]} 39. Qa8+ {[%emt 0:01:07]} Qd8 {[%emt 0:00:07]} 40. Qc6 {[%emt 0:00:00]} Rd3 {[%emt 0:00:00]} 41. Rxd3 {[%emt 0:05:30]} Bxd3 {[%emt 0:01:36]} 42. Qc3 {[%emt 0:03:55]} Bg6 {[%emt 0:00:50]} 43. Qb4+ {[%emt 0:01:33]} Kg8 {[%emt 0:00:28]} 44. f4 {[%emt 0:03:46]} Qc7 {[%emt 0:06:05]} 45. Qd4 {[%emt 0:03:13]} Qe7 {[%emt 0:05:22]} 46. f5 {[%emt 0:06:54]} Bh7 {[%emt 0:00:27]} 47. a4 {[%emt 0:01:46]} Qc7 {[%emt 0:00:26]} 48. Qe4 {[%emt 0:00:45]} Qb8 {[%emt 0:05:05]} 49. h4 {[%emt 0:01:00]} Qd8 {[%emt 0:00:41]} 50. h5 {[%emt 0:00:57]} Qc8 {[%emt 0:02:52]} 51. Kg1 {[%emt 0:02:21]} Qb8 {[%emt 0:05:35]} 52. Ne2 {[%emt 0:00:51]} Qc8 {[%emt 0:01:08]} 53. g4 {[%emt 0:00:30]} Qd8 {[%emt 0:03:51]} 54. Kg2 {[%emt 0:00:25]} Kf8 {[%emt 0:01:38]} 55. Kf3 {[%emt 0:01:12]} Qe7 {[%emt 0:00:54]} 56. Nf4 {[%emt 0:02:57]} Qa3+ {[%emt 0:02:38]} 57. Nd3 {[%emt 0:01:50]} Qe7 {[%emt 0:00:39]} 58. Ne5 {[%emt 0:01:11]} Qa3+ {[%emt 0:00:42]} 59. Kf4 {[%emt 0:01:22]} Qc1+ {[%emt 0:00:16]} 60. Kf3 {[%emt 0:00:40]} Qa3+ {[%emt 0:00:27]} 61. Kg2 {[%emt 0:00:24]} Qb2+ {[%emt 0:00:52]} 62. Kh3 {[%emt 0:00:42]} Qa3+ {[%emt 0:00:01]} 63. Nf3 {[%emt 0:00:02]} Qe7 {[%emt 0:01:43]} 64. Qf4 {[%emt 0:00:33]} Qd8 {[%emt 0:02:03]} 65. Qb4+ {[%emt 0:00:35]} Kg8 {[%emt 0:00:44]} 66. Kg3 {[%emt 0:00:43]} Qc7+ {[%emt 0:00:20]} 67. Qf4 {[%emt 0:00:02]} Qd8 {[%emt 0:00:55]} 68. Nd4 {[%emt 0:01:17]} g6 {[%emt 0:02:29]} 69. fxg6 {[%emt 0:01:38]} fxg6 {[%emt 0:00:02]} 70. hxg6 {[%emt 0:00:21]} Bxg6 {[%emt 0:00:07]} 71. Qxh6 {[%emt 0:00:28]} Qxd4 {[%emt 0:00:16]} 72. Qxg6+ {[%emt 0:00:14]} Kf8 {[%emt 0:00:06]} 73. Qf5+ {[%emt 0:00:08]} Kg8 {[%emt 0:00:46]} 74. Qg5+ {[%emt 0:00:51]} Kh8 {[%emt 0:00:23]} 75. Qf4 {[%emt 0:00:17]} Qc3+ {[%emt 0:00:30]} 76. Kh4 {[%emt 0:00:31]} Qe1+ {[%emt 0:00:21]} 77. Kg5 {[%emt 0:00:37]} Qa5+ {[%emt 0:00:07]} 78. Kg6 {[%emt 0:00:39]} 1-0